bitfinex/quotes_SOLUSD_20241202
["timestamp","ask_amount","ask_price","bid_price","bid_amount"]
[1733114596544,22.4842,229.52,229.4,49.88767188]
[1733114597669,20.0,229.49,229.4,49.88767188]
[1733114597970,20.0,229.49,229.37,0.86966337]
[1733114597971,20.0,229.49,229.39,26.11078788]
[1733114598265,20.0,229.49,229.4,23.776884]
[1733114598965,20.0,229.49,229.38,23.776884]
[1733114599166,20.0,229.49,229.38,49.88767188]
[1733114599745,20.0,229.49,229.38,23.776884]
[1733114600668,20.0,229.49,229.38,49.88767188]
[1733114601168,20.0,229.49,229.4,23.776884]
[1733114601356,20.0,229.49,229.4,26.11078788]
[1733114601557,20.0,229.49,229.41,23.776884]
[1733114601972,20.0,229.49,229.39,23.776884]
[1733114602151,20.0,229.49,229.37,23.776884]
[1733114602661,20.0,229.49,229.35,23.776884]
[1733114603066,20.0,229.49,229.33,0.86946193]
[1733114603265,20.0,229.41,229.3,26.11078788]
[1733114604552,20.0,229.41,229.27,26.11078788]
[1733114604756,20.0,229.37,229.26,26.11078788]
[1733114605266,20.0,229.37,229.28,26.11078788]
[1733114605769,20.0,229.37,229.27,26.11078788]
[1733114605964,20.0,229.37,229.28,23.776884]
[1733114606142,20.0,229.37,229.28,49.88767188]
[1733114607869,20.0,229.37,229.28,23.776884]
[1733114608174,20.0,229.37,229.25,26.11078788]
[1733114608472,20.0,229.33,229.23,26.11078788]
[1733114609745,20.0,229.33,229.22,26.11078788]
[1733114610176,20.0,229.29,229.21,26.11078788]
[1733114611067,20.0,229.29,229.2,26.11078788]
[1733114611252,20.0,229.29,229.23,26.11078788]
[1733114611453,20.0,229.29,229.24,49.88767188]
[1733114612969,20.0,229.29,229.23,26.11078788]
[1733114613151,20.0,229.29,229.24,23.776884]
[1733114613765,20.0,229.29,229.16,13.97011597]
[1733114613966,20.0,229.29,229.18,16.34015569]
[1733114615282,20.0,229.29,229.19,23.776884]
[1733114615878,20.0,229.29,229.18,23.776884]
[1733114618476,20.0,229.29,229.14,0.87033114]
[1733114618477,20.0,229.29,229.16,23.776884]
[1733114618677,20.0,229.29,229.16,40.11703969]
[1733114619776,20.0,229.25,229.12,16.34015569]
[1733114619960,20.0,229.25,229.11,16.34015569]
[1733114620169,20.0,229.25,229.1,16.34015569]
[1733114621288,20.0,229.25,229.11,23.776884]
[1733114621583,20.0,229.25,229.11,40.11703969]
[1733114623591,20.0,229.25,229.11,23.776884]
[1733114623778,20.0,229.25,229.11,40.11703969]
[1733114625400,20.0,229.17,229.1,23.776884]
[1733114626195,20.0,229.17,229.02,19.57]
[1733114626491,20.0,229.17,229.06,16.34015569]
[1733114627477,20.0,229.17,229.01,0.87073829]
[1733114627478,20.0,229.17,229.07,16.34015569]
[1733114627663,20.0,229.17,229.08,23.776884]
[1733114628792,20.0,229.17,229.07,23.776884]
[1733114629692,20.0,229.17,229.06,16.34015569]
[1733114630085,16.6097,229.16,229.05,16.34015569]
[1733114630289,20.0,229.13,229.05,16.34015569]
[1733114630681,20.0,229.13,229.04,16.34015569]
[1733114630884,20.0,229.13,229.02,0.87079989]
[1733114630885,20.0,229.13,229.05,23.776884]
[1733114631202,20.0,229.13,229.04,23.776884]
[1733114633198,19.5,229.13,229.04,23.776884]
[1733114633503,19.5,229.13,229.04,40.11703969]
[1733114633981,19.5,229.13,229.04,23.776884]
[1733114634376,19.5,229.13,228.91,70.0]
[1733114634377,7.7236,229.12,228.91,70.0]
[1733114634682,7.7236,229.12,228.98,16.34015569]
[1733114634877,7.7236,229.12,228.99,16.34015569]
[1733114635267,20.0,229.09,228.99,16.34015569]
[1733114635573,20.0,229.09,228.98,16.34015569]
[1733114635769,20.0,229.09,229.0,23.776884]
[1733114636386,20.0,229.09,228.99,23.776884]
[1733114637297,20.0,229.09,228.99,40.11703969]
[1733114637599,20.0,229.08,228.99,40.11703969]
[1733114637810,20.0,229.08,228.97,23.776884]
[1733114637977,20.0,229.08,228.96,16.46566049]
[1733114638175,20.0,229.08,228.97,16.34015569]
[1733114638580,20.0,229.04,228.96,0.1255048]
[1733114639102,16.0529,229.07,229.01,16.34015569]
[1733114639304,16.0529,229.07,229.04,16.34015569]
[1733114639477,8.40081153,229.11,229.05,16.34015569]
[1733114639678,8.40081153,229.11,229.03,16.34015569]
[1733114639878,8.40081153,229.11,229.04,23.776884]
[1733114641308,20.0,229.08,229.04,23.776884]
[1733114641598,20.0,229.08,229.05,16.34015569]
[1733114641915,20.0,229.08,229.06,23.776884]
[1733114642503,8.40081153,229.11,229.06,23.776884]
[1733114643505,16.3397,229.12,229.06,23.776884]
[1733114643723,20.0,229.09,229.06,40.11703969]
[1733114643881,20.0,229.09,229.08,40.11703969]
[1733114644084,21.9152,229.17,229.08,40.11703969]
[1733114644408,21.9152,229.17,229.03,0.8706985]
[1733114644409,21.9152,229.17,229.09,40.11703969]
[1733114644588,21.9152,229.17,229.09,23.776884]
[1733114644780,21.9152,229.17,229.07,23.776884]
[1733114645707,20.0,229.14,229.07,23.776884]
[1733114645883,0.6539,229.1,229.07,23.776884]
[1733114648106,0.6539,229.1,229.0,23.776884]
[1733114648790,0.6539,229.1,228.97,16.34015569]
[1733114649399,0.6539,229.1,228.98,16.34015569]
[1733114649922,0.6539,229.1,228.99,16.34015569]
[1733114650084,0.6539,229.1,229.04,16.34015569]
[1733114650414,0.6539,229.1,229.09,40.11703969]
[1733114652206,0.6539,229.1,229.09,40.98754392]
[1733114653908,0.6539,229.1,229.09,40.11703969]
[1733114654888,0.6539,229.1,229.09,23.776884]
[1733114655081,0.6539,229.1,229.08,16.34015569]
[1733114655082,0.6539,229.1,229.08,23.776884]
[1733114656312,0.6539,229.1,229.09,23.776884]
[1733114656517,0.6539,229.1,229.07,23.776884]
[1733114656715,0.6539,229.1,229.05,23.776884]
[1733114657218,0.6539,229.1,229.03,16.34015569]
[1733114657384,0.6539,229.1,229.01,16.34015569]
[1733114657892,0.6539,229.1,229.0,16.34015569]
[1733114658098,20.0,229.08,229.0,16.34015569]
[1733114658308,20.0,229.08,228.99,16.34015569]
[1733114658521,20.0,229.08,229.0,16.34015569]
[1733114659108,20.0,229.08,229.01,16.34015569]
[1733114659503,20.0,229.08,229.02,16.34015569]
[1733114659709,20.0,229.08,229.03,23.776884]
[1733114661097,0.6539,229.1,229.07,40.11703969]
[1733114661408,0.6539,229.1,229.07,23.776884]
[1733114661913,0.6539,229.1,229.05,23.776884]
[1733114662450,0.6539,229.1,229.05,40.11703969]
[1733114663290,0.6539,229.1,229.05,23.776884]
[1733114663695,0.6539,229.1,229.04,23.776884]
[1733114664097,0.6539,229.1,229.04,40.98786182]
[1733114664417,0.6539,229.1,229.06,23.776884]
[1733114664802,0.6539,229.1,229.04,24.64770613]
[1733114665006,0.6539,229.1,229.03,23.776884]
[1733114666723,0.6539,229.1,229.02,23.776884]
[1733114668112,0.6539,229.1,229.04,16.34015569]
[1733114668313,0.6539,229.1,229.05,40.11703969]
[1733114668520,0.6539,229.1,229.04,16.34015569]
[1733114668716,0.6539,229.1,229.04,23.776884]
[1733114669122,0.6539,229.1,229.04,40.11703969]
[1733114669707,0.6539,229.1,229.04,23.776884]
[1733114670716,0.6539,229.1,229.05,0.870858]
[1733114671224,0.6539,229.1,229.06,40.11703969]
[1733114671402,0.6539,229.1,229.08,23.776884]
[1733114672533,0.6539,229.1,229.08,40.11703969]
[1733114672834,0.6539,229.1,229.08,40.98765771]
[1733114673612,0.6539,229.1,229.08,40.11703969]
[1733114674523,0.6539,229.1,229.09,23.776884]
[1733114675621,0.6539,229.1,229.07,23.776884]
[1733114676736,0.6539,229.1,229.05,23.776884]
[1733114677133,0.6539,229.1,229.06,17.21092916]
[1733114677320,0.6539,229.1,229.09,40.11703969]
[1733114677518,0.6539,229.1,229.09,40.98762883]
[1733114678115,0.6539,229.1,229.09,24.64747314]
[1733114678321,0.6539,229.1,229.08,23.776884]
[1733114679927,0.6539,229.1,229.07,23.776884]
[1733114680628,0.6539,229.1,229.05,40.11703969]
[1733114681333,0.6539,229.1,229.05,23.776884]
[1733114681527,0.6539,229.1,229.06,0.87077364]
[1733114681718,0.6539,229.1,229.07,23.776884]
[1733114682433,0.6539,229.1,229.08,17.21083013]
[1733114682936,0.6539,229.1,229.09,23.776884]
[1733114683538,0.6539,229.1,229.08,23.776884]
[1733114683716,0.6539,229.1,229.07,24.64758087]
[1733114684039,0.6539,229.1,229.07,23.776884]
[1733114684233,0.6539,229.1,229.06,23.776884]
[1733114684439,0.6539,229.1,228.99,0.87072133]
[1733114684624,0.6539,229.1,229.01,16.34015569]
[1733114684973,0.6539,229.1,229.01,0.87087341]
[1733114685247,0.6539,229.1,229.08,16.34015569]
[1733114685422,0.6539,229.1,229.06,16.34015569]
[1733114685614,0.6539,229.1,229.05,16.34015569]
[1733114685820,0.6539,229.1,229.05,23.776884]
[1733114687343,0.6539,229.1,229.06,0.8707917]
[1733114687841,0.6539,229.1,229.07,23.776884]
[1733114688538,0.6539,229.1,229.06,23.776884]
[1733114689516,0.6539,229.1,229.01,16.34015569]
[1733114691144,0.6539,229.1,229.02,23.776884]
[1733114691520,0.6539,229.1,228.97,29.43015569]
[1733114692120,0.6539,229.1,228.98,16.34015569]
[1733114692738,0.6539,229.1,228.97,29.43015569]
[1733114693332,0.6539,229.1,228.98,40.11703969]
[1733114694956,0.6539,229.1,229.02,16.34015569]
[1733114695240,0.6539,229.1,228.97,0.87096821]
[1733114695244,0.6539,229.1,229.07,40.11703969]
[1733114695652,0.6539,229.1,229.09,23.776884]
[1733114696223,0.6539,229.1,229.09,40.11703969]
[1733114696727,0.6539,229.1,229.09,57.57203969]
[1733114697538,0.6539,229.1,229.09,53.20703969]
[1733114697740,0.6539,229.1,229.09,57.57203969]
[1733114698044,0.6539,229.1,229.09,36.866884]
[1733114698241,0.6539,229.1,229.09,53.20703969]
[1733114698642,0.6539,229.1,229.07,23.776884]
[1733114698828,0.6539,229.1,229.07,16.34015569]
[1733114699031,0.6539,229.1,229.08,17.21082273]
[1733114699341,0.6539,229.1,229.09,16.34015569]
[1733114700134,0.6539,229.1,229.09,40.11703969]
[1733114702428,0.6539,229.1,229.08,23.776884]
[1733114702628,0.6539,229.1,229.07,23.776884]
[1733114702851,0.6539,229.1,229.04,16.34015569]
[1733114703062,0.6539,229.1,229.06,16.34015569]
[1733114703228,0.6539,229.1,229.09,29.43015569]
[1733114703753,0.6539,229.1,229.07,0.8707176]
[1733114703955,0.6539,229.1,229.03,13.09]
[1733114704259,0.6539,229.1,229.07,16.34015569]
[1733114704432,0.6539,229.1,229.09,29.43015569]
[1733114705232,0.6539,229.1,229.09,53.20703969]
[1733114705551,20.0,229.19,229.15,23.776884]
[1733114705939,15.2606,229.22,229.15,17.21055923]
[1733114706136,15.2606,229.22,229.16,23.776884]
[1733114706536,15.2606,229.22,229.16,40.11703969]
[1733114706952,15.2606,229.22,229.16,23.776884]
[1733114707335,15.2606,229.22,229.18,23.776884]
[1733114708048,20.0,229.31,229.19,16.34015569]
[1733114708250,20.0,229.31,229.21,23.776884]
[1733114708448,2.24585693,229.34,229.23,23.776884]
[1733114708650,15.0033,229.37,229.23,23.776884]
[1733114709865,20.0,229.34,229.23,23.776884]
[1733114710655,15.0033,229.37,229.27,23.776884]
[1733114710963,15.0033,229.37,229.29,23.776884]
[1733114711954,20.0,229.34,229.28,23.776884]
[1733114712333,20.0,229.34,229.26,23.776884]
[1733114712537,20.0,229.34,229.28,23.776884]
[1733114712959,20.0,229.34,229.16,91.61440255]
[1733114712960,20.0,229.34,229.18,30.3000834]
[1733114713170,20.0,229.34,229.18,0.86992771]
[1733114713947,20.0,229.34,229.16,22.81135569]
[1733114713948,20.0,229.34,229.19,0.87017032]
[1733114714151,20.0,229.34,229.17,0.87019025]
[1733114714664,20.0,229.34,229.17,5.23519025]
[1733114715541,20.0,229.34,229.18,23.776884]
[1733114715742,20.0,229.34,229.2,23.776884]
[1733114717241,20.0,229.34,229.22,23.776884]
[1733114719277,22.1577,229.31,229.12,21.57536469]
[1733114719435,20.0,229.28,229.13,13.09]
[1733114719639,20.0,229.28,229.14,0.87031295]
[1733114720644,20.0,229.28,229.15,36.866884]
[1733114720838,20.0,229.28,229.17,23.776884]
[1733114721666,20.0,229.28,229.14,0.87031581]
[1733114722458,20.0,229.28,229.14,13.96031581]
[1733114722664,20.0,229.28,229.15,29.43015569]
[1733114722844,20.0,229.28,229.17,23.776884]
[1733114723043,2.24795873,229.3,229.19,23.776884]
[1733114723261,22.1577,229.31,229.21,23.776884]
[1733114723749,22.1577,229.31,229.19,23.776884]
[1733114724163,22.1577,229.31,229.21,23.776884]
[1733114724765,24.38533769,229.31,229.21,23.776884]
[1733114725155,24.38533769,229.31,229.18,16.34015569]
[1733114725339,20.0,229.28,229.18,13.09]
[1733114725544,20.0,229.28,229.19,0.87024279]
[1733114726250,20.0,229.28,229.11,6.4178]
[1733114726251,20.0,229.28,229.15,16.34015569]
[1733114726453,20.0,229.28,229.14,0.87022329]
[1733114728278,20.0,229.28,229.15,23.776884]
[1733114729172,15.3146,229.27,229.14,0.87022329]
[1733114729381,6.1868,229.23,229.06,16.34015569]
[1733114729572,20.0,229.2,229.06,16.34015569]
[1733114729775,20.0,229.2,229.05,17.21058764]
[1733114730082,20.0,229.16,229.05,0.87043195]
[1733114730290,20.0,229.16,229.01,6.1899]
[1733114730291,20.0,229.16,229.01,13.09]
[1733114731156,20.0,229.16,228.99,16.34015569]
[1733114731352,20.0,229.12,229.0,13.09]
[1733114731582,20.0,229.12,229.0,13.96086676]
[1733114731778,20.0,229.12,229.0,30.30102245]
[1733114732091,20.0,229.12,229.01,16.34015569]
[1733114732265,20.0,229.12,229.02,0.87085346]
[1733114732465,20.0,229.12,229.05,16.34015569]
[1733114732686,20.0,229.12,229.06,17.21089847]
[1733114733174,20.0,229.12,229.07,23.776884]
[1733114733357,15.6741,229.19,229.09,16.34015569]
[1733114733564,15.6741,229.19,229.1,40.98761478]
[1733114734067,15.6741,229.19,229.12,23.776884]
[1733114734267,15.6741,229.19,229.11,23.776884]
[1733114734466,15.6741,229.19,229.07,16.34015569]
[1733114734666,20.0,229.16,229.06,23.776884]
[1733114735060,20.0,229.16,229.05,23.776884]
[1733114735387,20.0,229.16,229.03,16.34015569]
[1733114735569,20.0,229.16,229.03,29.43015569]
[1733114736586,20.0,229.16,229.04,16.34015569]
[1733114736890,20.0,229.16,229.05,23.776884]
[1733114737266,20.0,229.16,229.05,16.34015569]
[1733114737667,20.0,229.16,229.06,23.776884]
[1733114738879,20.0,229.16,229.05,23.776884]
[1733114740067,20.0,229.16,229.04,23.776884]
[1733114740286,20.0,229.16,229.03,23.776884]
[1733114740479,20.0,229.16,229.03,24.64768594]
[1733114740692,20.0,229.16,228.98,17.21098787]
[1733114741008,41.2064,229.17,228.98,13.96083218]
[1733114741986,41.2064,229.17,228.98,30.30098787]
[1733114742187,41.2064,229.17,228.99,23.776884]
[1733114742483,21.4767,229.12,228.96,0.1255048]
[1733114742686,20.0,229.09,228.96,0.1255048]
[1733114742983,20.0,229.09,228.96,17.3367754]
[1733114743185,20.0,229.09,228.96,0.1255048]
[1733114743765,19.55910103,229.09,228.96,0.1255048]
[1733114746995,20.0,229.03,228.96,0.1255048]
[1733114748187,20.0,229.03,228.98,23.776884]
[1733114748889,20.0,229.03,228.97,40.11703969]
[1733114749091,20.0,229.03,228.98,16.34015569]
[1733114749297,16.2306,229.06,229.03,23.776884]
[1733114749503,6.5802,229.11,229.03,23.776884]
[1733114749788,6.5802,229.11,229.05,23.776884]
[1733114750696,6.5802,229.11,229.03,16.34015569]
[1733114750697,1.5802,229.11,229.04,23.776884]
[1733114750994,20.0,229.09,229.04,23.776884]
[1733114753200,20.0,229.09,229.03,23.776884]
[1733114753787,20.0,229.09,229.02,23.776884]
[1733114754272,20.0,229.09,229.03,16.34015569]
[1733114754684,20.0,229.09,229.04,23.776884]
[1733114755299,20.0,229.09,229.03,23.776884]
[1733114755486,20.0,229.09,229.01,16.34015569]
[1733114756602,20.0,229.09,229.0,16.34015569]
[1733114756893,20.0,229.09,228.96,0.99647193]
[1733114756894,20.0,229.09,228.96,0.1255048]
[1733114757294,20.0,229.09,228.96,16.46566049]
[1733114757486,20.0,229.09,228.96,0.1255048]
[1733114757879,20.0,229.09,228.96,16.46566049]
[1733114758404,20.0,229.09,228.99,16.34015569]
[1733114759299,1.5802,229.11,229.03,40.11703969]
[1733114759489,1.5802,229.11,229.04,16.34015569]
[1733114759801,1.5802,229.11,229.05,23.776884]
[1733114760205,1.5802,229.11,229.03,23.776884]
[1733114760693,20.0,229.09,229.02,23.776884]
[1733114761387,20.0,229.09,229.02,40.11703969]
[1733114763005,20.0,229.09,229.02,23.776884]
[1733114763406,20.0,229.09,228.96,0.1255048]
[1733114763903,20.0,229.09,228.98,16.34015569]
[1733114764081,20.0,229.09,229.0,16.34015569]
[1733114765100,20.0,229.09,229.01,23.776884]
[1733114769308,20.0,229.09,228.96,0.1255048]
[1733114770383,20.0,229.05,228.96,0.1255048]
[1733114772121,15.5106,229.08,228.98,16.34015569]
[1733114772407,15.5106,229.08,228.99,23.776884]
[1733114772609,15.5106,229.08,228.99,16.34015569]
[1733114772812,15.5106,229.08,228.99,23.776884]
[1733114773605,20.0,229.05,228.98,16.34015569]
[1733114773812,20.0,229.05,228.99,23.776884]
[1733114774186,20.0,229.01,228.99,23.776884]
[1733114774816,20.0,229.05,228.99,23.776884]
[1733114775187,20.0,229.05,228.96,0.1255048]
[1733114782196,20.0,229.01,228.96,0.1255048]
[1733114783424,20.0,228.97,228.96,0.1255048]
[1733114788511,22.3816,228.96,228.76,0.87170494]
[1733114788708,22.3816,228.96,228.8,16.34015569]
[1733114788709,20.0,228.93,228.8,16.34015569]
[1733114789101,20.0,228.93,228.81,16.34015569]
[1733114789517,20.0,228.93,228.82,16.34015569]
[1733114789819,20.0,228.93,228.88,16.34015569]
[1733114790198,20.0,228.93,228.87,16.34015569]
[1733114790903,20.0,228.93,228.85,16.34015569]
[1733114791106,20.0,228.93,228.83,16.34015569]
[1733114791313,20.0,228.93,228.84,23.776884]
[1733114791513,20.0,228.93,228.82,23.776884]
[1733114792329,20.0,228.93,228.78,16.34015569]
[1733114792504,15.8073,228.91,228.74,6.7194658]
[1733114792823,6.1739,228.87,228.74,0.5117658]
[1733114793122,20.0,228.84,228.74,0.5117658]
[1733114793836,20.0,228.8,228.74,0.5117658]
[1733114794028,20.0,228.79,228.62,16.34015569]
[1733114794222,20.0,228.79,228.65,16.34015569]
[1733114794539,20.0,228.8,228.64,16.34015569]
[1733114796230,20.0,228.8,228.63,16.34015569]
[1733114796531,20.0,228.8,228.66,16.34015569]
[1733114796732,20.0,228.8,228.71,23.776884]
[1733114797040,15.99,228.83,228.73,23.776884]
[1733114797332,15.99,228.83,228.71,23.776884]
[1733114798140,15.99,228.83,228.74,16.34015569]
[1733114798309,15.99,228.83,228.76,23.776884]
[1733114799110,15.99,228.83,228.75,23.776884]
[1733114799723,20.0,228.8,228.75,23.776884]
[1733114800212,20.0,228.8,228.71,23.776884]
[1733114800933,20.0,228.8,228.7,23.776884]
[1733114801236,20.0,228.8,228.62,5.0]
[1733114801237,20.0,228.8,228.68,38.27025569]
[1733114801739,20.0,228.8,228.65,16.34015569]
[1733114802113,20.0,228.8,228.64,16.34015569]
[1733114803238,20.0,228.8,228.66,23.776884]
[1733114804117,20.0,228.8,228.67,16.34015569]
[1733114804317,20.0,228.8,228.68,23.776884]
[1733114804522,20.0,228.8,228.69,13.09]
[1733114804713,15.99,228.83,228.73,16.34015569]
[1733114804924,15.99,228.83,228.69,13.96221174]
[1733114804925,15.99,228.83,228.7,40.11703969]
[1733114805611,15.99,228.83,228.71,16.34015569]
[1733114805808,15.99,228.83,228.72,23.776884]
[1733114806035,15.99,228.83,228.71,16.34015569]
[1733114806235,15.99,228.83,228.72,23.776884]
[1733114806837,15.99,228.83,228.71,40.11703969]
[1733114807144,15.99,228.83,228.73,23.776884]
[1733114808242,15.99,228.83,228.72,23.776884]
[1733114808745,20.0,228.8,228.72,40.11703969]
[1733114809722,20.0,228.8,228.72,23.776884]
[1733114810422,20.0,228.8,228.72,40.11703969]
[1733114810814,20.0,228.8,228.72,23.776884]
[1733114811225,20.0,228.8,228.71,23.776884]
[1733114811615,20.0,228.8,228.69,40.98921831]
[1733114811821,20.0,228.8,228.7,16.34015569]
[1733114812025,20.0,228.8,228.71,17.21220433]
[1733114812217,20.0,228.8,228.72,40.11703969]
[1733114812440,15.99,228.83,228.74,23.776884]
[1733114813720,20.0,228.8,228.74,23.776884]
[1733114814625,20.0,228.8,228.73,23.776884]
[1733114815043,20.0,228.8,228.71,16.34015569]
[1733114815236,20.0,228.8,228.67,16.34015569]
[1733114815443,20.0,228.8,228.66,16.34015569]
[1733114815740,20.0,228.8,228.67,13.09]
[1733114815948,20.0,228.8,228.67,29.43015569]
[1733114816121,20.0,228.8,228.67,30.30228539]
[1733114816518,20.0,228.8,228.68,23.776884]
[1733114817432,20.0,228.8,228.66,16.34015569]
[1733114817941,20.0,228.8,228.62,16.34015569]
[1733114818245,20.0,228.72,228.58,6.5022]
[1733114818538,20.0,228.72,228.61,16.34015569]
[1733114818749,20.0,228.72,228.62,16.34015569]
[1733114818924,20.0,228.72,228.63,17.21251482]
[1733114819251,20.0,228.72,228.67,16.34015569]
[1733114819545,20.0,228.72,228.67,23.776884]
[1733114820541,16.3892,228.75,228.69,23.776884]
[1733114821343,15.981,228.8,228.7,0.87217184]
[1733114821644,15.981,228.8,228.73,23.776884]
[1733114822018,15.981,228.8,228.72,23.776884]
[1733114822219,15.981,228.8,228.68,23.776884]
[1733114822432,15.981,228.8,228.66,16.34015569]
[1733114822433,15.981,228.8,228.67,23.776884]
[1733114822630,20.0,228.77,228.66,16.34015569]
[1733114823246,20.0,228.77,228.65,16.34015569]
[1733114823420,20.0,228.77,228.63,13.09]
[1733114823421,20.0,228.77,228.64,17.21242958]
[1733114823741,20.0,228.77,228.63,16.34015569]
[1733114824122,20.0,228.72,228.58,6.5022]
[1733114824321,20.0,228.72,228.61,16.34015569]
[1733114824541,20.0,228.72,228.6,16.34015569]
[1733114824840,20.0,228.72,228.61,16.34015569]
[1733114825051,20.0,228.72,228.62,16.34015569]
[1733114825230,20.0,228.72,228.61,16.34015569]
[1733114825926,20.0,228.71,228.61,16.34015569]
[1733114826327,20.0,228.72,228.6,16.34015569]
[1733114826534,20.0,228.72,228.55,4.365]
[1733114826535,20.0,228.72,228.55,13.09]
[1733114826750,20.0,228.72,228.6,16.34015569]
[1733114826925,20.0,228.72,228.62,16.34015569]
[1733114827124,15.981,228.75,228.66,16.34015569]
[1733114827349,15.981,228.75,228.67,16.34015569]
[1733114827734,15.981,228.75,228.69,23.776884]
[1733114828134,16.1713,228.81,228.68,23.776884]
[1733114828339,16.1713,228.81,228.7,23.776884]
[1733114828545,16.1713,228.81,228.68,16.34015569]
[1733114828847,16.1713,228.81,228.69,23.776884]
[1733114829347,18.39589523,228.81,228.67,40.11703969]
[1733114829742,18.39589523,228.81,228.72,16.34015569]
[1733114829743,16.1713,228.81,228.72,16.34015569]
[1733114829943,16.1713,228.81,228.75,23.776884]
[1733114830127,16.1713,228.81,228.78,23.776884]
[1733114830329,16.1713,228.87,228.79,16.34015569]
[1733114830539,16.1713,228.87,228.8,40.11703969]
[1733114830738,16.1713,228.87,228.8,23.776884]
[1733114831256,16.1713,228.87,228.78,23.776884]
[1733114831632,16.1713,228.87,228.76,16.34015569]
[1733114831633,20.0,228.84,228.76,16.34015569]
[1733114831835,20.0,228.84,228.76,23.776884]
[1733114833149,20.0,228.84,228.75,23.776884]
[1733114833347,16.1713,228.87,228.79,23.776884]
[1733114833551,16.1713,228.87,228.82,23.776884]
[1733114833758,16.1713,228.87,228.79,40.98877072]
[1733114834051,16.1713,228.87,228.8,16.34015569]
[1733114834226,16.1713,228.87,228.81,23.776884]
[1733114834431,16.1713,228.87,228.79,40.98877072]
[1733114834744,20.0,228.84,228.79,23.776884]
[1733114834951,20.0,228.84,228.78,23.776884]
[1733114835333,20.0,228.84,228.75,23.776884]
[1733114835534,20.0,228.84,228.73,16.34015569]
[1733114836038,20.0,228.84,228.7,22.71745569]
[1733114836554,20.0,228.84,228.71,16.34015569]
[1733114836931,20.0,228.8,228.62,6.3773]
[1733114837152,20.0,228.76,228.59,16.34015569]
[1733114837456,20.0,228.76,228.58,16.34015569]
[1733114837661,24.99999938,228.76,228.57,17.21259328]
[1733114837868,24.99999938,228.76,228.56,22.71745569]
[1733114838160,24.99999938,228.76,228.55,16.34015569]
[1733114838355,24.99999938,228.76,228.54,17.21272499]
[1733114838932,4.99999938,228.74,228.51,13.6017658]
[1733114839156,20.0,228.68,228.51,16.85192149]
[1733114839461,20.0,228.68,228.51,0.5117658]
[1733114840550,20.0,228.68,228.52,0.87276022]
[1733114841236,20.0,228.68,228.51,26.81683248]
[1733114841237,20.0,228.64,228.51,0.5117658]
[1733114841436,20.0,228.64,228.52,0.8728872]
[1733114841739,15.4432,228.67,228.55,26.30506668]
[1733114841944,15.4432,228.67,228.56,0.87257211]
[1733114842141,15.4432,228.67,228.54,26.30506668]
[1733114842336,15.4432,228.67,228.55,0.87264073]
[1733114842542,15.4432,228.67,228.56,23.776884]
[1733114842743,15.4432,228.67,228.55,23.776884]
[1733114842943,15.4432,228.67,228.57,23.776884]
[1733114843371,20.0,228.64,228.57,23.776884]
[1733114843543,20.0,228.64,228.58,0.87263536]
[1733114843865,21.00001,228.68,228.59,23.776884]
[1733114844038,1.00001,228.68,228.61,23.776884]
[1733114844749,1.00001,228.68,228.63,23.776884]
[1733114845264,1.00001,228.68,228.65,23.776884]
[1733114845944,1.00001,228.68,228.63,23.776884]
[1733114846347,1.00001,228.68,228.63,50.08195068]
[1733114846665,1.00001,228.68,228.65,23.776884]